Cogmind - Beta 9.6 @@@ ROGUE MODE // 2020.05.17 @ 15:39:51 Player: cl0y-b1cks Result: Destroyed by G-34 Mercenary with Small Laser Performance ------------- Evolutions (1) 500 Regions Visited (3) 600 Robots Destroyed (5) 25 Value Destroyed (81) 81 Prototype IDs (0) 0 Alien Tech Used (0) 0 Bonus (0) 0 TOTAL SCORE: 1206 Bonus ------- None Cogmind --------- Core Integrity 0/400 Matter 241/300 Energy 29/100 System Corruption 0% Temperature Cool (6) Movement Walking (130) Location -9/Materials Parts ------- > --- POWER (1) -------- (None) > --- PROPULSION (2) --- Titanium Leg > --- UTILITY (4) ------ Heat Sink Small Storage Unit > --- WEAPON (2) ------- (None) > --- INVENTORY (6) ---- Titanium Leg Advanced Sensor Array Peak State ------------ > --- POWER ------------ (None) > --- PROPULSION ------- Titanium Leg Titanium Leg > --- UTILITY ---------- Small Storage Unit Advanced Sensor Array Integration Mediator > --- WEAPON ----------- (None) > --- INVENTORY -------- Titanium Leg Titanium Leg Advanced Sensor Array [Rating: 12] Favorites ----------- Power Light Ion Engine Engine Light Ion Engine Propulsion Titanium Leg Leg Titanium Leg Flight Unit Flight Unit Utility Small Storage Unit Device Integration Mediator Storage Small Storage Unit Weapon EM Pulse Gun Energy Gun EM Pulse Gun Build | -11 -10 -10 -9 ------- Run | Scr Mat Min Mat Slots Evolved 2 | . . . 2 Power . | . . . . Propulsion . | . . . . Utility 2 | . . . 2 Weapon . | . . . . Parts Attached 15 | 5 2 1 7 Power 1 | 1 . . . Engine 1 | 1 . . . Core . | . . . . Reactor . | . . . . Propulsion 7 | 2 2 . 3 Treads . | . . . . Leg 5 | 2 . . 3 Wheel . | . . . . Hover . | . . . . Flight 2 | . 2 . . Utility 4 | 1 . . 3 Device 3 | . . . 3 Storage 1 | 1 . . . Processor . | . . . . Hackware . | . . . . Protection . | . . . . Artifact . | . . . . Weapon 3 | 1 . 1 1 Energy Gun 3 | 1 . 1 1 Energy Cannon . | . . . . Ballistic Gun . | . . . . Ballistic Cannon . | . . . . Launcher . | . . . . Special Weapon . | . . . . Impact Weapon . | . . . . Slashing Weapon . | . . . . Piercing Weapon . | . . . . Special Melee Weapon . | . . . . Unidentified Prototypes . | . . . . Parts Lost 7 | . . 1 6 Power 1 | . . . 1 Propulsion 2 | . . . 2 Utility 2 | . . . 2 Weapon 2 | . . 1 1 Highest Loss Streak 3 | . . 1 3 Average Slot Usage (%) 54 | . 65 57 49 Engine 7 | . 14 14 2 Leg 15 | . 17 . 20 Flight 8 | . 8 28 1 Device 7 | . . . 13 Storage 12 | . 14 14 11 Energy Gun 2 | . 10 . 1 Naked Turns . | . . . . Heaviest Build 10 | 9 9 7 10 Greatest Support 34 | 20 20 8 34 Greatest Overweight (x) 2 | 1 2 . 2 Average Overweight (x) . | . . . . Largest Inventory Capacity 6 | 6 6 6 6 Average Capacity 5 | 5 6 6 6 Most Carried 4 | . 3 2 4 Average Carried 1 | . 1 2 2 Final Capacity 6 | 6 6 6 6 Final Carried 3 | . 3 2 2 Class Distribution -------------------- 100% | Mutant Dominant Class ---------------- Mutant | -10/Materials Mutant | -10/Mines Mutant | -9/Materials Resources | -11 -10 -10 -9 ----------- Run | Scr Mat Min Mat Matter Collected 221 | 142 19 . 60 Remotely . | . . . . Salvage Created 206 | . 146 . 60 Parts 13 | . 9 . 4 Haulers Intercepted . | . . . . Recyclers Shooed . | . . . . Parts Field Recycled . | . . . . Retrieved Matter . | . . . . Parts Self-Destructed . | . . . . Prevented . | . . . . Kills | -11 -10 -10 -9 ------- Run | Scr Mat Min Mat Combat Hostiles Destroyed 4 | . 3 . 1 Guns 4 | . 3 . 1 Classes Destroyed 3 | . 2 . 1 Recycler 1 | . 1 . . Swarmer 3 | . 3 . . Sentry 1 | . . . 1 Best Kill Streak 4 | . 4 . 1 Combat Bots Only 3 | . 3 . 1 Max Kills in Single Turn 1 | . 1 . 1 Gunslinging . | . . . . Exploded . | . . . . Melee . | . . . . Uniques/NPCs Destroyed . | . . . . Combat | -11 -10 -10 -9 -------- Run | Scr Mat Min Mat Damage Taken 1182 | . 111 53 1018 Core 438 | . 29 . 409 Absorbed by Shields . | . . . . Core Remaining (%) 94 | 100 . 88 . Volleys Fired 13 | . 10 1 2 Largest 1 | . 1 1 1 Hottest 45 | . 40 40 45 Shots Fired 13 | . 10 1 2 Gun 13 | . 10 1 2 Cannon . | . . . . Launcher . | . . . . Special . | . . . . Kinetic . | . . . . Thermal . | . . . . Explosive . | . . . . Electromagnetic 13 | . 10 1 2 Robot Hit Streak 4 | . 4 . 2 Robot Miss Streak 3 | . 3 1 . Penetration Max . | . . . . Secondary Targets . | . . . . Shots Hit Robots 8 | . 6 . 2 Core Hits 11 | . 4 1 6 Critical Hits . | . . . . Critical Kills . | . . . . Critical Parts Destroyed . | . . . . Melee Attacks . | . . . . Impact . | . . . . Slashing . | . . . . Piercing . | . . . . Sneak Attacks . | . . . . Combat Hostiles . | . . . . Follow-up Attacks . | . . . . Damage Inflicted 133 | . 85 12 36 Guns 122 | . 85 12 25 Cannons . | . . . . Explosions . | . . . . Melee . | . . . . Ramming 11 | . . . 11 Kinetic . | . . . . Thermal . | . . . . Explosive . | . . . . Electromagnetic 122 | . 85 12 25 Impact . | . . . . Slashing . | . . . . Piercing . | . . . . Highest Corruption . | . . . . Average Corruption . | . . . . Corruption Purged . | . . . . Overload Shots . | . . . . Overflow Damage . | . . . . Projectiles . | . . . . Explosions . | . . . . Melee . | . . . . Knockbacks . | . . . . Impact . | . . . . Kinetic . | . . . . Secondary . | . . . . Self-Inflicted Damage 3 | . . . 3 Shots . | . . . . Rammed 5 | . . . 5 Targets Rammed 7 | . . . 7 Kicked 2 | . . . 2 Crushed . | . . . . Highest Temperature 28 | . 8 28 3 Average Temperature 10 | . 5 19 3 Received Heat Transfer 471 | . . 24 447 Siege Activations . | . . . . Robots Corrupted . | . . . . Combat Hostiles . | . . . . Parts Fried . | . . . . Impact Corruptions . | . . . . Robots Melted . | . . . . Combat Hostiles . | . . . . Parts Melted . | . . . . Heat Transferred . | . . . . Parts Sabotaged . | . . . . Parts Stolen . | . . . . Parts Stripped . | . . . . Power Chain Reactions . | . . . . Missiles Intercepted . | . . . . Alert | -11 -10 -10 -9 ------- Run | Scr Mat Min Mat Peak Influence 90 | . 90 39 64 Average Influence 27 | . 49 28 24 Maximum Alert Level . | . . . . Low Security (%) 100 | 100 100 100 100 Level 1 . | . . . . Level 2 . | . . . . Level 3 . | . . . . Level 4 . | . . . . Level 5 . | . . . . High Security . | . . . . Max Security . | . . . . Squads Dispatched 4 | . 1 . 3 Investigation 2 | . . . 2 Extermination . | . . . . Reinforcement 2 | . 1 . 1 Assault . | . . . . Garrison . | . . . . Intercept . | . . . . Construction Impeded . | . . . . Haulers Reinforced . | . . . . Stealth | -11 -10 -10 -9 --------- Run | Scr Mat Min Mat Distress Signals 3 | . . . 3 Communications Jammed . | . . . . Distress Signals . | . . . . Times Spotted 28 | . 3 11 14 Peak Tracking Total 15 | . 3 15 10 Tactical Retreats 4 | . . 2 2 Traps | -11 -10 -10 -9 ------- Run | Scr Mat Min Mat Traps Triggered . | . . . . Indirectly . | . . . . Trap Hack Attempts . | . . . . Triggered . | . . . . Disarmed . | . . . . Reprogrammed . | . . . . Reused . | . . . . Traps Extracted . | . . . . Installed . | . . . . Triggered . | . . . . Machines | -11 -10 -10 -9 ---------- Run | Scr Mat Min Mat Machines Disabled . | . . . . Max in Single Turn . | . . . . Machines Sabotaged . | . . . . Garrisons Compromised . | . . . . Overloaded Fab Kills . | . . . . Fab Network Shutdowns . | . . . . Hacking | -11 -10 -10 -9 --------- Run | Scr Mat Min Mat Machines Accessed . | . . . . Terminals . | . . . . Fabricators . | . . . . Repair Stations . | . . . . Recycling Units . | . . . . Scanalyzers . | . . . . Garrison Access . | . . . . Total Hacks . | . . . . Successful . | . . . . Failed . | . . . . Catastrophic . | . . . . Database Lockouts . | . . . . Manual . | . . . . Terminals . | . . . . Fabricators . | . . . . Repair Stations . | . . . . Recycling Units . | . . . . Scanalyzers . | . . . . Garrison Access . | . . . . Terminal Hacks . | . . . . Fabricator Hacks . | . . . . Repair Station Hacks . | . . . . Recycling Unit Hacks . | . . . . Scanalyzer . | . . . . Garrison Access Hacks . | . . . . Unauthorized Hacks . | . . . . Terminals . | . . . . Fabricators . | . . . . Repair Stations . | . . . . Recycling Units . | . . . . Scanalyzers . | . . . . Garrison Access . | . . . . Data Cores Recovered . | . . . . Used . | . . . . Hacking Detections . | . . . . Full Trace Events . | . . . . Feedback Events . | . . . . Feedback Blocked . | . . . . Robot Schematics Acquired . | . . . . Robots Built . | . . . . Matter . | . . . . Time . | . . . . Total Robot Build Rating . | . . . . Part Schematics Acquired . | . . . . Parts Built . | . . . . Matter . | . . . . Time . | . . . . Total Part Build Rating . | . . . . Parts Repaired . | . . . . Time . | . . . . Parts Recycled . | . . . . Recycled Matter . | . . . . Retrieved Matter . | . . . . Retrieved Components . | . . . . Parts Scanalyzed . | . . . . Part Schematics Acquired . | . . . . Parts Damaged . | . . . . Bothacking | -11 -10 -10 -9 ------------ Run | Scr Mat Min Mat Used RIF Installer . | . . . . Robots Hacked . | . . . . Non-combat . | . . . . Combat . | . . . . Robot Hacks Applied . | . . . . Relay Couplers Released . | . . . . Robots Rewired . | . . . . Allies Hacked . | . . . . Hacks Repelled . | . . . . Allies | -11 -10 -10 -9 -------- Run | Scr Mat Min Mat Total Allies . | . . . . Largest Group . | . . . . Highest-Rated Group . | . . . . Highest-Rated Ally . | . . . . Total Orders . | . . . . Ally Attacks . | . . . . Total Damage . | . . . . Kills . | . . . . Allies Corrupted . | . . . . Allies Melted . | . . . . Intel | -11 -10 -10 -9 ------- Run | Scr Mat Min Mat Robot Analysis Total . | . . . . Derelict Logs Recovered . | . . . . Drone Launches . | . . . . Drone Recoveries . | . . . . Exploration | -11 -10 -10 -9 ------------- Run | Scr Mat Min Mat Turns Passed 419 | 46 79 76 218 Spaces Moved 463 | 37 80 192 154 Core 13 | 10 2 . 1 Treads . | . . . . Legs 189 | 27 25 . 137 Wheels . | . . . . Hover . | . . . . Flight 261 | . 53 192 16 Fastest Speed 37 | 50 37 37 37 Average Speed 75 | 105 67 37 120 Slowest Speed 200 | 120 200 37 150 Overloaded Moves . | . . . . Propulsion Burnouts . | . . . . Robots Hopped 8 | . 1 7 . Cave-ins Triggered . | . . . . Exploration Rate (%) 22 | 3 22 47 19 Regions Visited 3 Branch Regions 1 Pre-discovered Areas . | . . . . Known Exits Taken . | . . . . Unknown Exits Taken 3 | 1 1 1 . Scrap Searched . | . . . . Spaces Dug . | . . . . Terrain Destroyed . | . . . . Melee . | . . . . Projectile . | . . . . AOE . | . . . . Actions | -11 -10 -10 -9 --------- Run | Scr Mat Min Mat Total 504 | 41 93 188 182 Wait 5 | . . 2 3 Move 445 | 36 77 178 154 Hop 7 | . 1 6 . Pick Up 3 | . . . 3 Fast Attach 13 | 5 2 . 6 Attach 2 | . . 1 1 Detach 5 | . 3 . 2 Swap . | . . . . Drop 4 | . . . 4 Fire 13 | . 10 1 2 Melee . | . . . . Ram . | . . . . Kick 7 | . . . 7 Crush . | . . . . Escape Stasis . | . . . . Rewire . | . . . . Trap . | . . . . Miscellaneous . | . . . . Route ------- -11/Scrapyard -10/Materials -10/Mines -9/Materials History --------- Turn | Location | Event 16 | -11/Scrapyard | Discovered new exit (range 16) 47 | -11/Scrapyard | Entered Materials 120 | -10/Materials | Discovered new exit (range 16) 126 | -10/Materials | Entered Mines 166 | -10/Mines | Discovered new exit (range 5) 177 | -10/Mines | Assembled infested the area 182 | -10/Mines | Assisted by a Guerilla fighting off Assembled 202 | -10/Mines | Entered Materials 202 | -9/Materials | Evolved 2 slots: Utility x2 316 | -9/Materials | Build established: Mutant 343 | -9/Materials | Core integrity fell below 50% 402 | -9/Materials | Core integrity fell below 20% 420 | -9/Materials | Destroyed by G-34 Mercenary with Small Laser Last Messages --------------- 00312_ Adv. Sensor Array destroyed. 00339_ Slammed into G-34 Mercenary. 00342_ Kicked G-34 Mercenary out of the way. 00349_ G-34 Mercenary destroyed. 00351_ Titanium Leg destroyed. 00352_ R-06 Scavenger collects Aluminum Leg. 00387_ Acquired Hvy. EM Pulse Gun. 00391_ Y-45 Defender destroyed. 00391_ K-01 Serf collects debris. 00395_ Acquired 60 matter. 00396_ K-01 Serf collects debris. 00398_ Acquired Heat Sink. 00402_ Slammed into K-01 Serf. 00403_ Hvy. EM Pulse Gun destroyed. 00403_ Kicked G-34 Mercenary out of the way. 00405_ Slammed into G-34 Mercenary. 00406_ Slammed into K-01 Serf. 00410_ W-16 Scout sends out distress signal. 00412_ Integration Mediator destroyed. 00415_ Titanium Leg destroyed. Map ----- +----------------------------------------------------+ | # """ + ##########???????????????????????? | | # """ # #[ #???????????????????????? | | + # # """"" #???????????????????????? | | # " # # """"" #???????????????????????? | | #### T # # """"" #???????????????????????? | | ???# " # + """"" #???????????????????????? | | ???# # # """"" #???????????????????????? | | ???########## # """"" #???????????????????????? | | ????????????# # """"" ##########??????????????? | | ????????????# #= ## #??????????????? | | ????????????# ########+## #??????????????? | | ????????????+ #??????# ## #??????????????? | | ???????????## #??????# ## """" #??????????????? | | ?????????? ## ######## ## """" #??????????????? | | ?????????? # """" #??????????????? | | ?????????? / #??????????????? | | ?????????? g # [ #??????????????? | | ???????????############ Y# ![ #??????????????? | | ??????????????????????#ggg# ! [ #??????????????? | | ??????????????????????# # ! = #??????????????? | | ??????????????????????# ###### ##??????????????? | | ??????????????????????# #?###???????????????? | | ??????????????????????# #???????????????????? | | ??????????????????????# #???????????????????? | | ??????????????????????# #???????????????????? | | ??????????????????????# @ #???????????????????? | | ??????????????????????# b #???????????????????? | | ??????????????????????# g #???????????????????? | | ??????????????????????#w #???????????????????? | | ??????????????????????# #???????????????????? | | ??????????????????????# t ???????????????????? | | ??????????????????????#+##### #??????????????????? | | ?????????????????????? ?????g#??????????????????? | | ?????????????????????? ????? #??????????????????? | | ?????????????????????? "????? #??????????????????? | | ??????????????????????????????#??????????????????? | | ?????????????????????????????????????????????????? | | ?????????????????????????????????????????????????? | | ?????????????????????????????????????????????????? | | ?????????????????????????????????????????????????? | | ?????????????????????????????????????????????????? | | ?????????????????????????????????????????????????? | | ?????????????????????????????????????????????????? | | ?????????????????????????????????????????????????? | | ?????????????????????????????????????????????????? | | ?????????????????????????????????????????????????? | | ?????????????????????????????????????????????????? | | ?????????????????????????????????????????????????? | | ?????????????????????????????????????????????????? | | ?????????????????????????????????????????????????? | +----------------------------------------------------+ Best States ------------- Heat Dissipation 38 Energy Generation 10 Energy Capacity 125 Matter Stores 241 Matter Capacity 300 Sight Range 16 Robot Scan Range 16 Terrain Scan Density 10 Evasion (%) 62 Item Schematics ----------------- None Robot Schematics ------------------ None Fabricated ------------ Nothing Alien Tech Used ----------------- None Achievements -------------- None Challenges ------------ None Game ------ Seed SupercompositeMobileFrame Manual? 0 Play Time 00:06:50 Cumulative 116.2 hours Start 2020.05.17 @ 15:34:39 End 2020.05.17 @ 15:39:51 Sessions 1 Manual Loads 0 Difficulty Rogue Special Mode None Game No. 207 Rogue 207 Adventurer 0 Explorer 0 Win Type - Total 0 Types 0/0/0/0/0/0/0 Lore% 17 Gallery% 46 Achievement% 30 Wizard Run 0 Options --------- ASCII 0 Keyboard 1 Movement Numpad Keybinds 0 Fullscreen 2 Font 18/SmallcapsGlow Map View 76x50 Tactical HUD 1 Map Filters NONE Filters NONE Steam 1 RUN: 8236e80e-79aa-4daa-b783-e520f41d7ad1